bitfinex-derivatives/quotes_BTCF0:USTF0_20210707
["timestamp","ask_amount","ask_price","bid_price","bid_amount"]
[1625640000786,4.73044291,34765.0,34764.0,3.6853977]
[1625640000906,5.05139291,34765.0,34764.0,3.6853977]
[1625640001029,6.57988857,34765.0,34764.0,3.6853977]
[1625640001508,5.05139291,34765.0,34764.0,3.6853977]
[1625640002469,6.57987816,34765.0,34764.0,3.6853977]
[1625640003250,6.40749764,34765.0,34764.0,3.6853977]
[1625640003552,6.40749764,34765.0,34764.0,3.6283977]
[1625640003731,6.40749764,34765.0,34764.0,3.6853977]
[1625640004393,6.40749764,34765.0,34764.0,3.9179477]
[1625640004513,1.84943525,34765.0,34764.0,3.9179477]
[1625640004632,1.52848525,34765.0,34764.0,3.9179477]
[1625640004813,1.52845088,34768.0,34767.0,0.24057544]
[1625640004933,1.52845088,34768.0,34767.0,0.29757544]
[1625640005053,1.52829763,34769.0,34767.0,3.68110889]
[1625640005173,0.01225913,34768.0,34767.0,3.68599091]
[1625640005294,0.01225913,34768.0,34767.0,1.48669417]
[1625640005474,0.01225913,34768.0,34767.0,3.68073676]
[1625640005712,0.01225913,34768.0,34767.0,3.68561868]
[1625640005954,0.01225913,34768.0,34767.0,5.03847904]
[1625640006437,0.01225885,34769.0,34767.0,5.03847904]
[1625640006674,0.01225885,34769.0,34768.0,3.44295955]
[1625640006795,0.01225885,34769.0,34768.0,7.49153499]
[1625640006915,0.01225877,34770.0,34768.0,7.49153499]
[1625640007156,0.01225877,34770.0,34769.0,3.3809156]
[1625640007281,0.01225877,34770.0,34769.0,3.44279744]
[1625640007576,1.54016562,34770.0,34769.0,3.44279744]
[1625640007817,1.54016562,34770.0,34769.0,2.25947698]
[1625640008177,0.01225877,34770.0,34769.0,3.44281851]
[1625640008839,1.52790931,34771.0,34769.0,3.44281851]
[1625640009140,1.52790931,34771.0,34770.0,2.20216968]
[1625640009379,1.54016774,34771.0,34770.0,2.20216968]
[1625640010280,1.36778722,34771.0,34770.0,2.20216968]
[1625640010881,1.36778722,34771.0,34770.0,2.44274512]
[1625640011001,0.01225843,34771.0,34770.0,2.49974512]
[1625640011246,0.24057544,34773.0,34770.0,3.68242132]
[1625640011483,0.01225995,34772.0,34771.0,0.00488068]
[1625640011602,0.01225995,34772.0,34771.0,0.27263068]
[1625640011724,0.01225995,34772.0,34771.0,2.46865715]
[1625640012202,1.36977788,34772.0,34771.0,2.46865715]
[1625640012622,1.36977788,34772.0,34771.0,2.41165715]
[1625640015447,1.36977788,34772.0,34771.0,1.39810647]
[1625640018512,1.36977788,34772.0,34771.0,0.72240602]
[1625640018812,6.49307788,34772.0,34771.0,0.72240602]
[1625640018932,6.49307788,34772.0,34771.0,0.51165602]
[1625640019473,1.36977788,34772.0,34771.0,0.51165602]
[1625640019713,1.36977788,34772.0,34771.0,0.56865602]
[1625640019833,1.35751793,34772.0,34771.0,1.2441475]
[1625640020256,1.35751793,34772.0,34771.0,0.73732914]
[1625640020376,1.36977853,34772.0,34771.0,0.73732914]
[1625640020495,1.36977853,34772.0,34771.0,1.23904057]
[1625640020795,1.36977853,34772.0,34771.0,1.2439212]
[1625640022416,2.89596158,34772.0,34771.0,1.2439212]
[1625640022717,1.36977853,34772.0,34771.0,1.2439212]
[1625640026573,1.36977853,34772.0,34771.0,1.24457044]
[1625640028193,2.89608007,34772.0,34771.0,1.24457044]
[1625640028433,2.89608007,34772.0,34771.0,5.60847044]
[1625640029575,1.36977853,34772.0,34771.0,5.60847044]
[1625640029817,2.89605816,34772.0,34771.0,5.60847044]
[1625640030539,1.36977853,34772.0,34771.0,5.60847044]
[1625640030779,1.36977853,34772.0,34771.0,6.62300756]
[1625640030959,1.36977853,34772.0,34771.0,5.60847044]
[1625640031321,1.36977853,34772.0,34771.0,6.62303775]
[1625640031563,1.36977853,34772.0,34771.0,5.60847044]
[1625640031685,1.36977853,34772.0,34771.0,6.62383948]
[1625640032884,1.36977853,34772.0,34771.0,6.86441492]
[1625640034808,1.36977853,34772.0,34771.0,6.80741492]
[1625640036609,1.36977853,34772.0,34771.0,6.86441492]
[1625640038713,1.36977853,34772.0,34771.0,8.04963246]
[1625640038834,1.36977853,34772.0,34771.0,6.86441492]
[1625640038952,1.36977853,34772.0,34771.0,6.80741492]
[1625640039193,1.36977853,34772.0,34771.0,6.86441492]
[1625640040999,1.36977853,34772.0,34771.0,8.04950605]
[1625640041240,0.0122606,34772.0,34771.0,8.04950605]
[1625640041660,1.36876463,34772.0,34771.0,8.04950605]
[1625640042860,0.0122606,34772.0,34771.0,8.04950605]
[1625640043101,1.36868013,34772.0,34771.0,8.04950605]
[1625640045504,1.36868013,34772.0,34771.0,6.86441492]
[1625640045807,1.36868013,34772.0,34771.0,8.04950917]
[1625640046885,1.36868013,34772.0,34771.0,6.86441492]
[1625640050128,1.36868013,34772.0,34771.0,8.05029687]
[1625640050550,1.36868013,34772.0,34771.0,6.86441492]
[1625640051153,1.36868013,34772.0,34771.0,8.05043234]
[1625640051573,1.36868013,34772.0,34771.0,6.86441492]
[1625640051873,1.36868013,34772.0,34771.0,8.13770619]
[1625640052116,1.36868013,34772.0,34771.0,6.95151492]
[1625640052233,1.36868013,34772.0,34771.0,8.13806033]
[1625640052477,1.36868013,34772.0,34771.0,8.05096033]
[1625640053195,1.36868013,34772.0,34771.0,6.86441492]
[1625640054395,1.36868013,34772.0,34771.0,8.0510706]
[1625640056560,0.85328013,34772.0,34771.0,8.0510706]
[1625640056741,1.42267518,34778.0,34771.0,8.4805686]
[1625640056860,0.9235,34786.0,34777.0,1.18375618]
[1625640056980,1.69589362,34787.0,34777.0,3.86331139]
[1625640057100,1.69589362,34787.0,34785.0,0.59148188]
[1625640057221,1.69573047,34790.0,34785.0,0.59148188]
[1625640057402,0.2034728,34794.0,34785.0,0.56777223]
[1625640057523,0.04628585,34789.0,34786.0,0.00487445]
[1625640057703,0.04625014,34793.0,34788.0,3.7602]
[1625640058062,0.01224012,34789.0,34788.0,3.7602]
[1625640058182,0.01224012,34789.0,34786.0,0.08449867]
[1625640058364,0.24972214,34794.0,34785.0,0.2535216]
[1625640058482,0.20350232,34792.0,34783.0,0.25371993]
[1625640058786,0.24967205,34793.0,34783.0,0.08457331]
[1625640059085,0.24057544,34788.0,34787.0,0.24057544]
[1625640059326,0.25281622,34788.0,34787.0,0.24057544]
[1625640059565,0.25281622,34788.0,34787.0,4.99587544]
[1625640062511,0.50243622,34788.0,34787.0,4.99587544]
[1625640064555,0.50243622,34788.0,34787.0,5.06727544]
[1625640067323,0.50243622,34788.0,34787.0,5.13867544]
[1625640067505,2.19761304,34788.0,34787.0,5.13867544]
[1625640068284,2.19761304,34788.0,34787.0,0.38337544]
[1625640068886,3.72317975,34788.0,34787.0,0.38337544]
[1625640069128,3.96375519,34788.0,34787.0,0.1428]
[1625640069607,4.16715068,34788.0,34787.0,0.1428]
[1625640069727,4.20114972,34788.0,34787.0,0.1428]
[1625640070512,4.20114972,34788.0,34781.0,0.24057544]
[1625640070871,3.22096083,34782.0,34781.0,0.24057544]
[1625640071052,3.46153627,34782.0,34781.0,0.24057544]
[1625640071172,3.47380147,34782.0,34781.0,0.24057544]
[1625640079703,1.77856785,34782.0,34781.0,0.24057544]
[1625640080064,3.47415766,34782.0,34781.0,0.24057544]
[1625640080303,1.77856785,34782.0,34781.0,0.24057544]
[1625640081448,3.47416601,34782.0,34781.0,0.24057544]
[1625640090580,3.47416601,34782.0,34781.0,0.55861544]
[1625640093823,3.47416601,34782.0,34781.0,0.24057544]
[1625640098087,3.50816648,34782.0,34781.0,0.24057544]
[1625640103797,3.50816648,34782.0,34781.0,0.24546339]
[1625640104401,3.47416601,34782.0,34781.0,0.24546339]
[1625640104940,3.50816366,34782.0,34781.0,0.24546339]
[1625640105241,3.47416601,34782.0,34781.0,0.24546339]
[1625640105602,3.47416601,34782.0,34781.0,0.30246339]
[1625640106506,3.47416601,34782.0,34781.0,0.24546339]
[1625640112946,3.78439601,34782.0,34781.0,0.24546339]
[1625640113785,3.78439601,34782.0,34781.0,0.30246339]
[1625640116732,3.78439601,34782.0,34781.0,0.24546339]
[1625640116849,3.81839443,34782.0,34781.0,0.29757544]
[1625640118292,3.78439601,34782.0,34781.0,0.30246375]
[1625640119492,3.78439601,34782.0,34781.0,0.24546375]
[1625640119614,5.17635926,34782.0,34781.0,0.24057544]
[1625640120692,5.17635926,34782.0,34778.0,0.1417537]
[1625640120933,2.88572137,34779.0,34778.0,0.1417537]
[1625640121360,2.89796762,34779.0,34778.0,0.14664563]
[1625640121895,2.89796762,34779.0,34778.0,0.06189193]
[1625640122256,4.59568908,34779.0,34778.0,0.14670522]
[1625640123756,4.59568908,34779.0,34778.0,0.31635481]
[1625640123996,4.59568908,34779.0,34778.0,0.14670522]
[1625640124843,4.59568908,34779.0,34778.0,0.08970522]
[1625640124960,4.59568908,34779.0,34778.0,0.00489193]
[1625640125383,4.59568908,34779.0,34777.0,0.24057544]
[1625640125384,4.62969114,34779.0,34777.0,0.24057544]
[1625640125562,0.0462516,34778.0,34777.0,0.24057544]
[1625640125682,4.63111456,34778.0,34777.0,0.24057544]
[1625640127304,4.59711081,34778.0,34777.0,0.24057544]
[1625640135793,4.59711081,34778.0,34773.0,0.24057544]
[1625640135911,4.58090111,34774.0,34773.0,0.24057544]
[1625640136029,4.79686111,34774.0,34773.0,0.24057544]
[1625640136512,4.80910893,34774.0,34773.0,0.24057544]
[1625640137834,5.04968437,34774.0,34773.0,0.24057544]
[1625640139760,5.04968437,34774.0,34773.0,0.32757544]
[1625640139941,5.04968437,34774.0,34773.0,0.24057544]
[1625640144087,5.04968437,34774.0,34773.0,0.29757544]
[1625640145109,4.87734847,34774.0,34773.0,0.29757544]
[1625640146313,4.87734847,34774.0,34773.0,0.24057544]
[1625640147514,4.87734847,34774.0,34773.0,0.29757544]
[1625640149978,4.87734847,34774.0,34773.0,0.24057544]
[1625640151959,4.70501257,34774.0,34773.0,0.24057544]
[1625640155328,4.73902051,34774.0,34773.0,0.24057544]
[1625640156169,4.70501257,34774.0,34773.0,0.24057544]
[1625640156469,4.7390211,34774.0,34773.0,0.24057544]
[1625640157728,4.70501257,34774.0,34773.0,0.24057544]
[1625640158149,4.70501257,34774.0,34773.0,0.29757544]
[1625640158270,4.70501257,34774.0,34773.0,0.24057544]
[1625640158872,4.53267667,34774.0,34773.0,0.24057544]
[1625640159236,4.53267667,34774.0,34773.0,0.29757544]
[1625640159895,4.31671667,34774.0,34773.0,0.29757544]
[1625640160556,3.13711318,34774.0,34773.0,0.29757544]
[1625640160737,3.13711318,34774.0,34773.0,0.24057544]
[1625640160738,3.42858318,34774.0,34773.0,0.24057544]
[1625640160857,3.42858318,34774.0,34773.0,0.29757544]
[1625640160978,3.42858318,34774.0,34773.0,0.24057544]
[1625640162122,3.42858318,34774.0,34773.0,0.29757544]
[1625640162842,3.42858318,34774.0,34773.0,0.24057544]
[1625640163146,2.10526821,34774.0,34773.0,0.24057544]
[1625640163385,3.46059924,34774.0,34773.0,0.24057544]
[1625640164529,3.46059924,34774.0,34769.0,0.24057544]
[1625640164709,2.8772105,34770.0,34769.0,0.24057544]
[1625640165011,2.88943789,34770.0,34769.0,0.24057544]
[1625640165852,7.16883789,34770.0,34769.0,0.24057544]
[1625640166093,7.64998877,34770.0,34763.0,0.83364743]
[1625640166215,7.64998877,34770.0,34764.0,0.057]
[1625640166335,2.87610735,34765.0,34764.0,0.06190189]
[1625640166576,3.19365735,34765.0,34764.0,0.057]
[1625640166937,3.20588496,34765.0,34764.0,0.06190184]
[1625640168082,3.4464604,34765.0,34764.0,0.00490184]
[1625640169040,3.4464604,34765.0,34763.0,0.29757544]
[1625640169285,2.88611798,34764.0,34763.0,0.29757544]
[1625640169403,2.88611798,34764.0,34763.0,0.24057544]
[1625640169523,2.88611798,34764.0,34763.0,0.29757544]
[1625640170243,3.12669342,34764.0,34763.0,0.29757544]
[1625640171025,3.12669342,34764.0,34763.0,0.30247747]
[1625640171386,3.12669342,34764.0,34763.0,0.29757544]
[1625640172167,3.12669342,34764.0,34763.0,0.3024773]
[1625640172889,3.12669342,34764.0,34763.0,0.29757544]
[1625640174031,2.9543129,34764.0,34763.0,0.29757544]
[1625640174151,1.7742647,34764.0,34763.0,0.29757544]
[1625640180883,1.60187923,34764.0,34763.0,0.29757544]
[1625640187735,1.42949376,34764.0,34763.0,0.29757544]
[1625640192724,1.42949376,34764.0,34763.0,0.24057544]
[1625640192963,1.42949376,34764.0,34758.0,0.59319035]
[1625640193082,1.92949376,34764.0,34758.0,0.59319035]
[1625640193264,1.92949376,34764.0,34755.0,1.25747318]
[1625640193265,1.68813944,34762.0,34755.0,0.83383638]
[1625640193385,3.8069,34759.0,34755.0,0.83383638]
[1625640193505,3.8069,34759.0,34755.0,0.24057544]
[1625640193506,4.09795,34759.0,34755.0,0.24057544]
[1625640193804,1.68584701,34757.0,34755.0,0.24057544]
[1625640194404,0.49338043,34756.0,34750.0,0.32533871]
[1625640194704,0.0122296,34755.0,34750.0,0.24057544]
[1625640194826,0.0122296,34755.0,34751.0,0.057]
[1625640196328,0.24057544,34752.0,34751.0,0.057]
[1625640196447,0.53238544,34752.0,34751.0,0.057]
[1625640196748,0.54461499,34752.0,34751.0,0.057]
[1625640197047,0.53238544,34752.0,34751.0,0.057]
[1625640200116,0.53238544,34752.0,34750.0,0.24057544]
[1625640200236,0.53238544,34752.0,34750.0,0.29757544]
[1625640213877,1.88089359,34752.0,34750.0,0.29757544]
[1625640214358,0.53238544,34752.0,34750.0,0.29757544]
[1625640214959,1.88259497,34752.0,34750.0,0.29757544]
[1625640215680,1.35070568,34751.0,34750.0,0.29757544]
[1625640217724,1.88412933,34752.0,34750.0,0.30246879]
[1625640217961,1.88412933,34752.0,34750.0,0.29757544]
[1625640218507,1.88412933,34752.0,34751.0,0.00489329]
[1625640220611,1.89638392,34752.0,34751.0,0.00489329]
[1625640224468,1.89638392,34752.0,34751.0,0.59747369]
[1625640224586,1.89638392,34752.0,34751.0,0.65447369]
[1625640224706,0.25283003,34752.0,34751.0,1.24699475]
[1625640224947,0.01225459,34752.0,34751.0,1.24699475]
[1625640225304,1.2247737,34754.0,34751.0,1.24699475]
[1625640225428,1.35428056,34755.0,34751.0,2.26290557]
[1625640225728,1.52329619,34760.0,34755.0,0.057]
[1625640225847,1.52335723,34762.0,34755.0,0.057]
[1625640225967,0.01220985,34759.0,34755.0,0.06191086]
[1625640226087,0.01220985,34759.0,34758.0,1.18499656]
[1625640226209,0.01220924,34761.0,34758.0,1.52991656]
[1625640226389,0.01220924,34761.0,34758.0,5.90521656]
[1625640226507,1.52375594,34764.0,34758.0,5.91012712]
[1625640226629,1.52376839,34763.0,34760.0,0.14164659]
[1625640226748,0.01220954,34763.0,34762.0,0.29757544]
[1625640226988,1.5353486,34763.0,34762.0,0.29757544]
[1625640227231,1.52313906,34763.0,34762.0,0.29757544]
[1625640227533,1.53534907,34763.0,34762.0,0.29757544]
[1625640232274,1.53534907,34763.0,34762.0,0.24057544]
[1625640233054,1.53534907,34763.0,34762.0,0.29757544]
[1625640233300,1.53534907,34763.0,34762.0,0.24057544]
[1625640236671,1.53534907,34763.0,34762.0,0.29757544]
[1625640236787,1.53534907,34763.0,34762.0,0.24057544]
[1625640237751,3.2295637,34763.0,34762.0,0.24057544]
[1625640240515,4.58515178,34763.0,34762.0,0.24057544]
[1625640240998,4.58515178,34763.0,34762.0,0.29757544]
[1625640241304,2.89093715,34763.0,34762.0,0.29757544]
[1625640241841,1.36779809,34763.0,34762.0,0.29757544]
[1625640242020,2.89280658,34763.0,34762.0,0.29757544]
[1625640242800,2.89280658,34763.0,34762.0,0.53815088]
[1625640253796,1.5372185,34763.0,34762.0,0.53815088]
[1625640254577,1.5372185,34763.0,34762.0,0.54307791]
[1625640256857,1.5372185,34763.0,34762.0,0.82103791]
[1625640256980,0.01221001,34763.0,34762.0,1.32609793]
[1625640257219,0.01216291,34764.0,34762.0,1.99935641]
[1625640257520,0.01216278,34765.0,34763.0,0.00492598]
[1625640257643,0.01216278,34765.0,34764.0,0.057]
[1625640257998,1.53685575,34766.0,34764.0,0.06192604]
[1625640258119,0.01216288,34766.0,34764.0,0.14593257]
[1625640258297,0.01216274,34765.0,34764.0,0.14593257]
[1625640258418,0.01216274,34765.0,34764.0,0.31386398]
[1625640258538,0.01216272,34766.0,34764.0,0.31386398]
[1625640258838,0.01216272,34766.0,34764.0,0.64956417]
[1625640258959,0.01216272,34766.0,34765.0,0.0049258]
[1625640259980,0.01216251,34767.0,34765.0,0.0049258]
[1625640260100,1.53642193,34767.0,34765.0,0.0049258]
[1625640260281,1.53642193,34767.0,34766.0,5.2076]
[1625640260523,0.01216251,34767.0,34766.0,5.21252624]
[1625640261001,1.53649136,34767.0,34766.0,5.21252624]
[1625640261483,0.01216251,34767.0,34766.0,5.21252624]
[1625640262383,1.52396909,34768.0,34766.0,5.2076]
[1625640262806,1.52396909,34768.0,34766.0,5.2789]
[1625640262983,1.52396909,34768.0,34767.0,0.24057544]
[1625640263102,1.52396909,34768.0,34767.0,0.29757544]
[1625640264245,1.76458461,34769.0,34767.0,0.29757544]
[1625640267855,0.24057544,34769.0,34767.0,0.29757544]
[1625640268213,1.52336702,34770.0,34767.0,0.29757544]
[1625640268333,1.52349802,34771.0,34767.0,0.29757544]
[1625640268874,1.52345832,34772.0,34767.0,0.29757544]
[1625640269116,1.52345832,34772.0,34771.0,0.24057544]
[1625640269236,1.52345832,34772.0,34771.0,0.58843544]
[1625640269779,1.52301266,34773.0,34771.0,0.58843544]
[1625640270865,1.52322838,34772.0,34771.0,0.58843544]
[1625640271226,1.53540177,34772.0,34771.0,0.58843544]
[1625640271346,1.53540177,34772.0,34771.0,0.29757544]
[1625640273691,1.53540177,34772.0,34771.0,0.24057544]
[1625640274051,3.22786962,34772.0,34771.0,0.24057544]
[1625640274532,7.57826962,34772.0,34771.0,0.24057544]
[1625640275132,7.81884506,34772.0,34771.0,0.24057544]
[1625640276936,8.02200464,34772.0,34771.0,0.24057544]
[1625640280600,8.02200464,34772.0,34767.0,0.24057544]
[1625640280900,3.2184657,34768.0,34767.0,0.24057544]
[1625640281140,3.45904114,34768.0,34767.0,0.24057544]
[1625640281261,3.47121451,34768.0,34767.0,0.24057544]
[1625640292085,3.47121451,34768.0,34766.0,0.0713]
[1625640292206,3.67459537,34768.0,34766.0,0.0713]
[1625640292447,3.23268756,34767.0,34766.0,0.0713]
[1625640292629,3.43607465,34767.0,34766.0,0.0713]
[1625640293169,3.43607465,34767.0,34762.0,0.0713]
[1625640293288,0.24057544,34763.0,34762.0,0.0713]
[1625640293408,3.74761109,34763.0,34762.0,0.0713]
[1625640293710,3.75977611,34763.0,34762.0,0.0713]
[1625640296532,3.96311386,34763.0,34762.0,0.0713]
[1625640296713,3.75977611,34763.0,34762.0,0.0713]
[1625640297193,3.96311518,34763.0,34762.0,0.0713]
[1625640297435,3.75977611,34763.0,34762.0,0.0713]
[1625640297794,3.84597611,34763.0,34762.0,0.0713]
[1625640298336,3.75977611,34763.0,34762.0,0.0713]
[1625640299717,3.75977611,34763.0,34762.0,0.0647]
[1625640301099,3.46126109,34763.0,34762.0,0.0647]
[1625640301341,3.47342632,34763.0,34762.0,0.30527544]
[1625640301760,1.77833753,34763.0,34762.0,0.67418544]
[1625640303082,1.53776209,34763.0,34762.0,0.67418544]
[1625640303204,0.96616209,34763.0,34762.0,0.67911352]
[1625640303323,0.01216523,34763.0,34762.0,1.1602644]
[1625640303566,1.69348333,34772.0,34762.0,1.66434889]
[1625640303930,1.69344354,34773.0,34764.0,0.5883461]
[1625640304050,0.01216233,34771.0,34765.0,0.057]
[1625640304170,0.01216233,34771.0,34765.0,0.14106322]
[1625640304413,0.01216169,34772.0,34766.0,0.08900303]
[1625640304650,0.01216148,34770.0,34766.0,0.08900303]
[1625640304957,0.0121613,34771.0,34767.0,0.00492667]
[1625640305071,0.0121613,34771.0,34769.0,0.08404984]
[1625640305191,0.01216105,34774.0,34769.0,0.45091984]
[1625640305312,0.01216105,34774.0,34773.0,0.48115088]
[1625640305433,1.93340595,34777.0,34773.0,0.53815088]
[1625640305673,0.01216139,34774.0,34773.0,0.53815088]
[1625640305973,0.01216148,34776.0,34773.0,0.53815088]
[1625640306151,1.70500303,34776.0,34773.0,0.53815088]
[1625640306273,0.01216102,34774.0,34773.0,0.53815088]
[1625640306512,0.01214038,34775.0,34773.0,0.53815088]
[1625640307232,0.01214038,34775.0,34773.0,0.60285088]
[1625640307591,0.01214006,34776.0,34773.0,0.60285088]
[1625640312639,0.01214006,34776.0,34773.0,0.87608088]
[1625640313240,0.24057544,34777.0,34773.0,0.87608088]
[1625640315524,1.52230325,34776.0,34773.0,0.87608088]
[1625640317150,1.52230325,34776.0,34773.0,0.60285088]
[1625640317329,1.52210175,34774.0,34773.0,0.60285088]
[1625640319970,1.52188156,34775.0,34773.0,0.60285088]
[1625640320212,1.52187495,34774.0,34773.0,0.60285088]
[1625640320510,1.52187459,34775.0,34773.0,0.89192088]
[1625640325497,1.52132465,34776.0,34773.0,0.89192088]
[1625640328140,0.01213651,34775.0,34773.0,0.89192088]
[1625640328258,1.53323537,34775.0,34773.0,0.89192088]
[1625640328380,0.01213651,34775.0,34773.0,0.89192088]
[1625640328619,1.52109602,34776.0,34773.0,0.89192088]
[1625640328862,0.01213658,34775.0,34773.0,0.89192088]
[1625640329701,1.52109602,34776.0,34773.0,0.89192088]
[1625640330183,0.01213652,34775.0,34774.0,0.00493326]
[1625640331625,0.01213652,34775.0,34774.0,0.09093326]
[1625640331807,0.01213652,34775.0,34774.0,0.00493326]
[1625640332473,1.53303735,34775.0,34774.0,0.00493326]
[1625640332830,1.53303735,34775.0,34774.0,0.09093326]
[1625640332952,0.01213652,34775.0,34774.0,0.09093326]
[1625640333911,0.01213652,34775.0,34774.0,0.00493326]
[1625640334151,0.01213192,34776.0,34774.0,0.00493326]
[1625640334271,0.01213192,34776.0,34774.0,0.30742326]
[1625640334391,0.01213192,34776.0,34775.0,0.057]
[1625640334751,0.01213192,34776.0,34775.0,0.06193498]
[1625640334930,0.01213192,34776.0,34775.0,0.14803498]
[1625640336371,0.01213192,34776.0,34775.0,0.06193498]
[1625640336495,1.53270868,34776.0,34775.0,0.06193498]
[1625640337092,1.53270868,34776.0,34773.0,0.54585088]
[1625640337212,1.53270868,34776.0,34773.0,0.60285088]
[1625640337332,1.87993868,34776.0,34773.0,0.60285088]
[1625640337518,1.52061284,34774.0,34773.0,0.60285088]
[1625640337756,1.7733215,34774.0,34773.0,0.5507865]
[1625640338053,1.7733215,34774.0,34773.0,0.54585088]
[1625640338296,1.7733215,34774.0,34773.0,0.60285088]
[1625640338657,1.7733215,34774.0,34773.0,0.60778642]
[1625640340641,0.25270866,34774.0,34773.0,0.60778642]
[1625640342866,0.01213322,34774.0,34773.0,0.95018642]
[1625640343104,0.01209137,34776.0,34773.0,0.95018642]
[1625640343404,0.01209144,34774.0,34773.0,0.95018642]
[1625640343706,0.01209139,34775.0,34773.0,0.94525088]
[1625640343944,0.01209155,34776.0,34773.0,0.94525088]
[1625640355612,0.24057544,34777.0,34773.0,1.5352971]
[1625640356092,0.24057544,34777.0,34774.0,0.0842902]
[1625640356212,0.24057544,34780.0,34774.0,0.0842902]
[1625640356453,0.24057544,34780.0,34775.0,0.00494565]
[1625640356754,0.01209793,34779.0,34775.0,0.00494565]
[1625640357534,0.01209793,34779.0,34775.0,0.0893235]
[1625640357654,0.01209793,34779.0,34775.0,0.1463235]
[1625640357898,0.01209793,34779.0,34778.0,0.24057544]
[1625640358018,0.01209793,34779.0,34778.0,0.29757544]
[1625640364084,0.01209793,34779.0,34778.0,0.30252111]
[1625640364269,0.01209793,34779.0,34778.0,0.29757544]
[1625640364806,0.01209793,34779.0,34778.0,0.30252113]
[1625640365047,0.01209793,34779.0,34778.0,0.29757544]
[1625640365349,0.01209793,34779.0,34778.0,0.30252095]
[1625640365468,0.01209793,34779.0,34778.0,0.89385094]
[1625640366127,0.24057544,34780.0,34778.0,0.89385094]
[1625640366368,0.24057544,34780.0,34779.0,0.3103578]
[1625640366607,0.24057544,34780.0,34779.0,0.1414526]
[1625640366787,0.25267186,34780.0,34779.0,0.14639841]
[1625640368170,0.25267186,34780.0,34779.0,0.06194581]
[1625640368831,0.25267186,34780.0,34779.0,0.14634084]
[1625640369251,0.25267186,34780.0,34779.0,0.06194581]
[1625640369673,0.01209642,34780.0,34779.0,0.06194581]
[1625640370095,0.01209634,34782.0,34779.0,0.06194581]
[1625640370392,0.01209634,34782.0,34780.0,0.00494577]
[1625640370513,0.01209634,34782.0,34781.0,0.057]
[1625640370933,0.01209634,34782.0,34781.0,0.06194585]
[1625640371116,0.01209634,34782.0,34781.0,0.00494585]
[1625640371776,1.70796234,34782.0,34781.0,0.00494585]
[1625640371957,1.70796234,34782.0,34781.0,0.24552129]
[1625640372379,1.70796234,34782.0,34781.0,0.30252129]
[1625640372498,0.01209634,34782.0,34781.0,0.30252129]
[1625640372860,0.01209634,34782.0,34781.0,0.24552129]
[1625640373099,0.01209634,34782.0,34781.0,0.30252129]
[1625640373280,0.01209634,34782.0,34781.0,0.24552129]
[1625640373461,1.70796138,34782.0,34781.0,0.24552129]
[1625640374903,1.70796138,34782.0,34781.0,0.30252129]
[1625640374904,0.01209634,34782.0,34781.0,0.30252129]
[1625640375203,0.01209634,34782.0,34781.0,0.24552129]
[1625640375685,0.01209634,34782.0,34781.0,0.30252129]
[1625640377665,0.01209634,34782.0,34781.0,0.24552129]
[1625640380311,0.01209634,34782.0,34781.0,0.30252129]
[1625640384465,0.01209634,34782.0,34781.0,0.24552129]
[1625640384712,0.01209634,34782.0,34781.0,0.33052129]
[1625640386934,0.01209634,34782.0,34781.0,0.38752129]
[1625640387596,0.01209634,34782.0,34781.0,0.30252129]
[1625640399072,0.01209634,34782.0,34781.0,0.24552129]
[1625640400035,0.01209634,34782.0,34781.0,0.30252129]
[1625640400395,0.01209634,34782.0,34781.0,0.38575505]
[1625640400936,0.01209634,34782.0,34781.0,0.30252129]
[1625640402078,0.01209634,34782.0,34781.0,0.38581272]
[1625640402197,0.01209634,34782.0,34781.0,0.67684272]
[1625640402318,0.01209634,34782.0,34781.0,0.61984272]
[1625640402439,0.01209634,34782.0,34781.0,0.53655129]
[1625640404423,0.01209634,34782.0,34781.0,0.6198587]
[1625640404724,0.24057544,34783.0,34781.0,0.78148048]
[1625640404904,0.24057544,34783.0,34782.0,0.00494666]
[1625640405147,0.2526668,34783.0,34782.0,0.00494666]
[1625640406834,0.2526668,34783.0,34782.0,0.24299666]
[1625640407855,0.2526668,34783.0,34782.0,0.29999666]
[1625640408097,0.2526668,34783.0,34782.0,0.38330518]
[1625640408217,0.2526668,34783.0,34782.0,0.62388062]
[1625640408337,0.2526668,34783.0,34782.0,0.7904858]
[1625640410142,0.2526668,34783.0,34782.0,0.62388062]
[1625640412428,0.2526668,34783.0,34782.0,0.79031604]
[1625640412725,0.2526668,34783.0,34782.0,1.12315701]
[1625640412965,0.2526668,34783.0,34782.0,1.03984849]
[1625640413506,0.2526668,34783.0,34782.0,0.79023615]
[1625640414890,1.77996339,34783.0,34782.0,0.79023615]
[1625640416032,1.77996339,34783.0,34782.0,0.73323615]
[1625640416692,1.77996339,34783.0,34782.0,0.4835721]
[1625640417052,1.77996339,34783.0,34782.0,0.2455221]
[1625640417954,1.77996339,34783.0,34782.0,0.32874485]
[1625640418678,1.77996339,34783.0,34782.0,0.38574485]
[1625640418977,1.77996339,34783.0,34782.0,0.55217954]
[1625640419277,1.77996339,34783.0,34782.0,0.49517954]
[1625640419818,1.77996339,34783.0,34782.0,0.32874485]
[1625640419936,1.77996258,34783.0,34782.0,0.32874485]
[1625640420240,1.77996258,34783.0,34782.0,0.49526543]
[1625640420358,1.77996258,34783.0,34782.0,0.55226543]
[1625640420479,1.77996258,34783.0,34782.0,0.8853093]
[1625640420719,1.77996258,34783.0,34782.0,0.80208655]
[1625640421079,1.53938714,34783.0,34782.0,0.80208655]
[1625640421200,1.53938714,34783.0,34782.0,0.88535196]
[1625640421861,1.53938714,34783.0,34782.0,0.80208655]
[1625640422101,1.53938714,34783.0,34782.0,0.88546358]
[1625640423605,1.53938714,34783.0,34782.0,0.80208655]
[1625640423846,1.53938714,34783.0,34782.0,0.88542118]
[1625640424145,1.53938714,34783.0,34782.0,0.80208655]
[1625640424385,1.53938714,34783.0,34782.0,0.88542748]
[1625640424865,1.53938714,34783.0,34782.0,0.80208655]
[1625640425165,1.53938714,34783.0,34782.0,0.55238863]
[1625640425347,1.53938714,34783.0,34782.0,0.82880427]
[1625640425825,1.53938714,34783.0,34782.0,0.49538863]
[1625640426067,1.53938714,34783.0,34782.0,0.32886805]
[1625640427270,1.53938714,34783.0,34782.0,0.39356805]
[1625640427870,1.53938714,34783.0,34782.0,0.56036371]
[1625640429613,1.53938714,34783.0,34782.0,0.39356805]
[1625640430517,1.53938714,34783.0,34782.0,0.56033261]
[1625640430753,1.53938714,34783.0,34782.0,0.39356805]
[1625640433460,1.53938714,34783.0,34782.0,0.56021906]
[1625640434004,1.53938714,34783.0,34782.0,0.89355868]
[1625640434181,1.53938714,34783.0,34782.0,0.56021906]
[1625640435383,1.53938714,34783.0,34782.0,0.39356805]
[1625640435864,1.53938714,34783.0,34782.0,0.3102221]
[1625640436106,3.23749297,34783.0,34782.0,0.3102221]
[1625640446031,3.46487297,34783.0,34782.0,0.3102221]
[1625640450539,3.70544841,34783.0,34782.0,0.3102221]
[1625640450718,3.70544841,34783.0,34780.0,0.25038367]
[1625640450719,3.70544841,34783.0,34778.0,0.58443376]
[1625640450961,3.22678145,34779.0,34776.0,0.25065939]